fUSD/lending_fUSD_20260408
["ID","MTS","AMOUNT","RATE_DAILY","PERIOD"]
[420086178,1775662277550,-226.124257,0.00013699,2]
[420086179,1775662277560,-1320.335912,0.00013699,2]
[420086180,1775662277570,-641.078677,0.00013699,2]
[420086181,1775662277581,-641.078677,0.00013699,2]
[420086182,1775662277590,-641.078677,0.00013699,2]
[420086183,1775662277600,-641.078677,0.00013699,2]
[420086184,1775662277610,-1243.774526,0.00013699,2]
[420086185,1775662277619,-1243.774526,0.00013699,2]
[420086186,1775662277629,-641.078677,0.00013699,2]
[420086187,1775662277639,-1320.335912,0.00013699,2]
[420086188,1775662277649,-641.078677,0.00013699,2]
[420086189,1775662277658,-1243.774526,0.00013699,2]
[420086190,1775662277668,-1243.774526,0.00013699,2]
[420086191,1775662277678,-641.078677,0.00013699,2]
[420086192,1775662277689,-151.0,0.00013699,2]
[420086193,1775662277698,-641.078679,0.00013699,2]
[420086194,1775662277707,-1243.774526,0.00013699,2]
[420086195,1775662277717,-151.0,0.00013699,2]
[420086196,1775662277727,-1243.774526,0.00013699,2]
[420086197,1775662277738,-1572.247701,0.00013699,2]
[420086198,1775662277749,-1572.247701,0.00013699,2]
[420086199,1775662277758,-1243.774526,0.00013699,2]
[420086200,1775662277767,-1243.774522,0.00013699,2]
[420086201,1775662277777,-857.190655,0.00013699,2]
[420086202,1775662277787,-545.118044,0.00013699,2]
[420086203,1775662277797,-857.190655,0.00013699,2]
[420086204,1775662277806,-545.118044,0.00013699,2]
[420086205,1775662277816,-1572.247701,0.00013699,2]
[420086206,1775662277826,-1572.247701,0.00013699,2]
[420086207,1775662277836,-151.0,0.00013699,2]
[420086208,1775662277846,-857.190655,0.00013699,2]
[420086209,1775662277856,-545.118044,0.00013699,2]
[420086210,1775662277866,-151.0,0.00013699,2]
[420086211,1775662277876,-211.117548,0.00013699,2]
[420086212,1775662277887,-857.190655,0.00013699,2]
[420086213,1775662277897,-545.118044,0.00013699,2]
[420086214,1775662277907,-1572.247701,0.00013699,2]
[420086215,1775662277917,-211.117548,0.00013699,2]
[420086216,1775662277927,-1572.247701,0.00013699,2]
[420086217,1775662277937,-151.0,0.00013699,2]
[420086218,1775662277947,-545.118044,0.00013699,2]
[420086219,1775662277958,-151.0,0.00013699,2]
[420086220,1775662277968,-857.190655,0.00013699,2]
[420086221,1775662277978,-545.118044,0.00013699,2]
[420086222,1775662277989,-376.806069,0.00013699,2]
[420086223,1775662277998,-1360.940005,0.00013699,2]
[420086224,1775662278008,-857.190655,0.00013699,2]
[420086225,1775662278018,-1572.247701,0.00013699,2]
[420086226,1775662278028,-1360.940005,0.00013699,2]
[420086227,1775662278039,-376.806069,0.00013699,2]
[420086228,1775662278049,-200.359579,0.00013699,2]
[420086229,1775662278059,-171.206733,0.00013699,2]
[420086230,1775662278069,-557.116664,0.00013699,2]
[420086231,1775662278079,-1572.247704,0.00013699,2]
[420086232,1775662278088,-200.359579,0.00013699,2]
[420086233,1775662278098,-528.171872,0.00013699,2]
[420086234,1775662278108,-171.206733,0.00013699,2]
[420086235,1775662278119,-557.116664,0.00013699,2]
[420086236,1775662278129,-528.171872,0.00013699,2]
[420086237,1775662278140,-545.118044,0.00013699,2]
[420086238,1775662278150,-151.0,0.00013699,2]
[420086239,1775662278159,-857.190655,0.00013699,2]
[420086240,1775662278169,-545.118053,0.00013699,2]
[420086241,1775662278180,-1360.940005,0.00013699,2]
[420086242,1775662278190,-376.806069,0.00013699,2]
[420086243,1775662278200,-151.0,0.00013699,2]
[420086244,1775662278209,-211.117548,0.00013699,2]
[420086245,1775662278220,-857.190664,0.00013699,2]
[420086246,1775662278229,-1360.940005,0.00013699,2]
[420086247,1775662278240,-376.806069,0.00013699,2]
[420086248,1775662278250,-200.359579,0.00013699,2]
[420086249,1775662278261,-171.206733,0.00013699,2]
[420086250,1775662278271,-211.117548,0.00013699,2]
[420086251,1775662278280,-557.116664,0.00013699,2]
[420086252,1775662278290,-528.171872,0.00013699,2]
[420086253,1775662278301,-200.359579,0.00013699,2]
[420086254,1775662278311,-557.116664,0.00013699,2]
[420086255,1775662278424,-528.171872,0.00013699,2]
[420086256,1775662278474,-171.206733,0.00013699,2]
[420086257,1775662278484,-187.137271,0.00013699,2]
[420086258,1775662278494,-376.806069,0.00013699,2]
[420086259,1775662278504,-1360.940005,0.00013699,2]
[420086260,1775662278514,-211.117548,0.00013699,2]
[420086261,1775662278524,-376.806069,0.00013699,2]
[420086262,1775662278535,-151.0,0.00013699,2]
[420086263,1775662278545,-1360.940005,0.00013699,2]
[420086264,1775662278555,-211.117548,0.00013699,2]
[420086265,1775662278565,-151.0,0.00013699,2]
[420086266,1775662278576,-557.116664,0.00013699,2]
[420086267,1775662278586,-200.359579,0.00013699,2]
[420086268,1775662278597,-171.206733,0.00013699,2]
[420086269,1775662278606,-151.0,0.00013699,2]
[420086270,1775662278617,-528.171872,0.00013699,2]
[420086271,1775662278627,-151.0,0.00013699,2]
[420086272,1775662278637,-557.116664,0.00013699,2]
[420086273,1775662278649,-200.359579,0.00013699,2]
[420086274,1775662278659,-171.206733,0.00013699,2]
[420086275,1775662278670,-528.171872,0.00013699,2]
[420086276,1775662278680,-151.771502,0.00013699,2]
[420086277,1775662278691,-376.806069,0.00013699,2]
[420086278,1775662278702,-1360.940005,0.00013699,2]
[420086279,1775662278712,-211.117548,0.00013699,2]
[420086280,1775662278722,-376.806076,0.00013699,2]
[420086281,1775662278733,-151.0,0.00013699,2]
[420086282,1775662278743,-1360.940006,0.00013699,2]
[420086283,1775662278753,-211.117547,0.00013699,2]
[420086284,1775662278764,-200.359579,0.00013699,2]
[420086285,1775662278774,-171.206733,0.00013699,2]
[420086286,1775662278784,-557.116664,0.00013699,2]
[420086287,1775662278795,-528.171872,0.00013699,2]
[420086288,1775662278805,-223.722788,0.00013699,2]
[420086289,1775662278816,-151.0,0.00013699,2]
[420086290,1775662278826,-171.206737,0.00013699,2]
[420086291,1775662278836,-200.359579,0.00013699,2]
[420086292,1775662278847,-557.116656,0.00013699,2]
[420086293,1775662278858,-528.17188,0.00013699,2]
[420086294,1775662278868,-151.0,0.00013699,2]
[420086295,1775662278878,-151.0,0.00013699,2]
[420086296,1775662278889,-2939.808369,0.00013699,2]
[420086297,1775662278898,-2939.808369,0.00013699,2]
[420086298,1775662278907,-272.414539,0.00013699,2]
[420086299,1775662278917,-2939.808369,0.00013699,2]
[420086300,1775662278927,-2939.808369,0.00013699,2]
[420086301,1775662278937,-2939.808369,0.00013699,2]
[420086302,1775662278947,-2939.808369,0.00013699,2]
[420086303,1775662278958,-570.868716,0.00013699,2]
[420086304,1775662278968,-2939.808369,0.00013699,2]
[420086305,1775662278978,-1352.119912,0.00013699,2]
[420086306,1775662278989,-2939.80836,0.00013699,2]
[420086307,1775662278999,-570.868716,0.00013699,2]
[420086308,1775662279011,-1352.119912,0.00013699,2]
[420086309,1775662279021,-570.868716,0.00013699,2]
[420086310,1775662279032,-570.868716,0.00013699,2]
[420086311,1775662279043,-151.0,0.00013699,2]
[420086312,1775662279053,-151.0,0.00013699,2]
[420086313,1775662279063,-1352.119912,0.00013699,2]
[420086314,1775662279074,-1352.119912,0.00013699,2]
[420086315,1775662279085,-151.0,0.00013699,2]
[420086316,1775662279096,-151.0,0.00013699,2]
[420086317,1775662279106,-1352.119912,0.00013699,2]
[420086318,1775662279116,-1352.119912,0.00013699,2]
[420086319,1775662279127,-1352.119912,0.00013699,2]
[420086320,1775662279138,-151.000001,0.00013699,2]
[420086321,1775662279148,-151.0,0.00013699,2]
[420086322,1775662279158,-1352.119903,0.00013699,2]
[420086323,1775662279168,-151.0,0.00013699,2]
[420086324,1775662279178,-151.0,0.00013699,2]
[420086325,1775662279188,-151.0,0.00013699,2]
[420086326,1775662279199,-462.253159,0.00013699,2]
[420086327,1775662279210,-462.253159,0.00013699,2]
[420086328,1775662279220,-694.535305,0.00013699,2]
[420086329,1775662279230,-151.0,0.00013699,2]
[420086330,1775662279241,-694.535305,0.00013699,2]
[420086331,1775662279253,-151.0,0.00013699,2]
[420086332,1775662279263,-462.253159,0.00013699,2]
[420086333,1775662279274,-462.253159,0.00013699,2]
[420086334,1775662279284,-694.535305,0.00013699,2]
[420086335,1775662279295,-151.0,0.00013699,2]
[420086336,1775662279304,-694.535305,0.00013699,2]
[420086337,1775662279315,-151.0,0.00013699,2]
[420086338,1775662279325,-462.253159,0.00013699,2]
[420086339,1775662279335,-462.253159,0.00013699,2]
[420086340,1775662279345,-694.535305,0.00013699,2]
[420086341,1775662279356,-151.0,0.00013699,2]
[420086342,1775662279367,-694.535305,0.00013699,2]
[420086343,1775662279377,-151.0,0.00013699,2]
[420086344,1775662279387,-462.253159,0.00013699,2]
[420086345,1775662279398,-462.253157,0.00013699,2]
[420086346,1775662279407,-151.0,0.00013699,2]
[420086347,1775662279417,-151.0,0.00013699,2]
[420086348,1775662279427,-694.535305,0.00013699,2]
[420086349,1775662279438,-151.0,0.00013699,2]
[420086350,1775662279448,-151.0,0.00013699,2]
[420086351,1775662279458,-231.476561,0.00013699,2]
[420086352,1775662279468,-231.476561,0.00013699,2]
[420086353,1775662279478,-694.535312,0.00013699,2]
[420086354,1775662279488,-2033.244023,0.00013699,2]
[420086355,1775662279498,-2033.244023,0.00013699,2]
[420086356,1775662279508,-151.0,0.00013699,2]
[420086357,1775662279518,-151.0,0.00013699,2]
[420086358,1775662279528,-151.0,0.00013699,2]
[420086359,1775662279539,-231.476561,0.00013699,2]
[420086360,1775662279549,-912.407916,0.00013699,2]
[420086361,1775662279559,-151.0,0.00013699,2]
[420086362,1775662279569,-231.476561,0.00013699,2]
[420086363,1775662279580,-912.407916,0.00013699,2]
[420086364,1775662279590,-2033.244023,0.00013699,2]
[420086365,1775662279601,-2033.244023,0.00013699,2]
[420086366,1775662279611,-151.0,0.00013699,2]
[420086367,1775662279622,-912.407916,0.00013699,2]
[420086368,1775662279631,-151.0,0.00013699,2]
[420086369,1775662279641,-151.0,0.00013699,2]
[420086370,1775662279651,-912.407916,0.00013699,2]
[420086371,1775662279661,-151.0,0.00013699,2]
[420086372,1775662279671,-2033.244023,0.00013699,2]
[420086373,1775662279681,-2033.244023,0.00013699,2]
[420086374,1775662279691,-912.407916,0.00013699,2]
[420086375,1775662279701,-231.476561,0.00013699,2]
[420086376,1775662279711,-151.0,0.00013699,2]
[420086377,1775662279722,-151.0,0.00013699,2]
[420086378,1775662279732,-912.407916,0.00013699,2]
[420086379,1775662279743,-231.476561,0.00013699,2]
[420086380,1775662279753,-151.0,0.00013699,2]
[420086381,1775662279764,-151.0,0.00013699,2]
[420086382,1775662279775,-151.0,0.00013699,2]
[420086383,1775662279785,-231.694162,0.00013699,2]
[420086384,1775662279795,-151.0,0.00013699,2]
[420086385,1775662279805,-2033.244023,0.00013699,2]
[420086386,1775662279815,-231.694168,0.00013699,2]
[420086387,1775662279826,-2033.244019,0.00013699,2]
[420086388,1775662279835,-912.407916,0.00013699,2]
[420086389,1775662279845,-231.476561,0.00013699,2]
[420086390,1775662279855,-231.476561,0.00013699,2]
[420086391,1775662279865,-912.407926,0.00013699,2]
[420086392,1775662279875,-406.856224,0.00013699,2]
[420086393,1775662279886,-406.856224,0.00013699,2]
[420086394,1775662279897,-940.785029,0.00013699,2]
[420086395,1775662279907,-151.0,0.00013699,2]
[420086396,1775662279918,-3158.761635,0.00013699,2]
[420086397,1775662279929,-940.785029,0.00013699,2]
[420086398,1775662279941,-151.0,0.00013699,2]
[420086399,1775662279951,-3158.761635,0.00013699,2]
[420086400,1775662279962,-151.0,0.00013699,2]
[420086401,1775662279972,-406.856224,0.00013699,2]
[420086402,1775662279982,-406.856224,0.00013699,2]
[420086403,1775662279993,-284.145926,0.00013699,2]
[420086404,1775662280004,-151.0,0.00013699,2]
[420086405,1775662280014,-2028.419888,0.00013699,2]
[420086406,1775662280025,-182.805074,0.00013699,2]
[420086407,1775662280035,-2028.419888,0.00013699,2]
[420086408,1775662280046,-940.785029,0.00013699,2]
[420086409,1775662280057,-3128.860662,0.00013699,2]
[420086410,1775662280067,-940.785029,0.00013699,2]
[420086411,1775662280077,-3158.761635,0.00013699,2]
[420086412,1775662280086,-3128.860662,0.00013699,2]
[420086413,1775662280097,-406.856224,0.00013699,2]
[420086414,1775662280107,-3158.761635,0.00013699,2]
[420086415,1775662280117,-406.856224,0.00013699,2]
[420086416,1775662280127,-2028.419888,0.00013699,2]
[420086417,1775662280136,-867.262936,0.00013699,2]
[420086418,1775662280146,-1508.556363,0.00013699,2]
[420086419,1775662280156,-2028.419888,0.00013699,2]
[420086420,1775662280168,-867.262936,0.00013699,2]
[420086421,1775662280178,-1000.0,0.00013713,7]
[420086422,1775662280189,-166.66,0.00013836,2]
[420086423,1775662280200,-200.0,0.00013836,2]
[420086424,1775662280210,-155.32006583,0.00013902,2]
[420086425,1775662280221,-1213.60218691,0.0001396,2]
[420086426,1775662280231,-150.0,0.00013973,2]
[420086427,1775662280242,-150.0,0.00013973,2]
[420086428,1775662280253,-150.0,0.00013973,2]
[420086429,1775662280263,-150.0,0.00013973,2]
[420086430,1775662280274,-150.0,0.00013973,2]
[420086431,1775662280285,-166.66,0.00013973,2]
[420086432,1775662280295,-786.02,0.00013973,2]
[420086433,1775662280306,-4733.74989347,0.00014006,2]
[420086434,1775662280316,-651.0,0.00014048,2]
[420086435,1775662280326,-6453.0,0.00014048,2]
[420086436,1775662280336,-166.66,0.0001411,2]
[420086437,1775662280347,-159.59,0.0001412,2]
[420086438,1775662280357,-1263.0,0.00014133,5]
[420086439,1775662280367,-1806.0,0.00014133,5]
[420086440,1775662280378,-544.057405,0.0001414,7]
[420086441,1775662280389,-422.848738,0.0001414,2]
[420086442,1775662280399,-441.959239,0.0001414,7]
[420086443,1775662280409,-503.665782,0.0001414,2]
[420086444,1775662280419,-535.001732,0.0001414,7]
[420086445,1775662280430,-501.0,0.00014162,2]
[420086446,1775662280442,-666.0,0.00014209,2]
[420086447,1775662280452,-666.0,0.00014209,2]
[420086448,1775662280462,-666.0,0.00014209,2]
[420086449,1775662280471,-440332.2883375,0.0001421,2]
[420086450,1775662280482,-151.0,0.0001421,2]
[420086451,1775662280492,-151.0,0.0001421,2]
[420086452,1775662280501,-151.0,0.0001421,2]
[420086453,1775662280511,-160.606027,0.0001421,2]
[420086454,1775662280522,-151.0,0.0001421,2]
[420086455,1775662280532,-151.0,0.0001421,2]
[420086456,1775662280542,-151.0,0.0001421,2]
[420086457,1775662280551,-151.0,0.0001421,2]
[420086458,1775662280561,-151.0,0.0001421,2]
[420086459,1775662280571,-183.448912,0.0001421,2]
[420086460,1775662280581,-151.0,0.0001421,2]
[420086461,1775662280591,-911.817401,0.0001421,2]
[420086462,1775662280601,-151.0,0.0001421,2]
[420086463,1775662280611,-151.0,0.0001421,2]
[420086464,1775662280620,-911.817401,0.0001421,2]
[420086465,1775662280631,-201.410641,0.0001421,2]
[420086466,1775662281015,-151.0,0.0001421,2]
[420086467,1775662281044,-911.817401,0.0001421,2]
[420086468,1775662281054,-201.410641,0.0001421,2]
[420086469,1775662281065,-911.817401,0.0001421,2]
[420086470,1775662281075,-201.410641,0.0001421,2]
[420086471,1775662281085,-151.0,0.0001421,2]
[420086472,1775662281096,-201.410641,0.0001421,2]
[420086473,1775662281106,-151.0,0.0001421,2]
[420086474,1775662281117,-155.998488,0.0001421,2]
[420086475,1775662281126,-155.998488,0.0001421,2]
[420086476,1775662281136,-155.998488,0.0001421,2]
[420086477,1775662281146,-155.998488,0.0001421,2]
[420086478,1775662281156,-367.057,0.0001421,2]
[420086479,1775662281165,-367.057,0.0001421,2]
[420086480,1775662281179,-367.057,0.0001421,2]
[420086481,1775662281190,-367.057,0.0001421,2]
[420086482,1775662281200,-232.700006,0.0001421,2]
[420086483,1775662281209,-232.700006,0.0001421,2]
[420086484,1775662281219,-232.700006,0.0001421,2]
[420086485,1775662281229,-232.700006,0.0001421,2]
[420086486,1775662281239,-157.215334,0.0001421,2]
[420086487,1775662281249,-157.215334,0.0001421,2]
[420086488,1775662281259,-157.215334,0.0001421,2]
[420086489,1775662281269,-606.860603,0.0001421,2]
[420086490,1775662281279,-157.215334,0.0001421,2]
[420086491,1775662281288,-606.860603,0.0001421,2]
[420086492,1775662281298,-606.860603,0.0001421,2]
[420086493,1775662281308,-151.0,0.0001421,2]
[420086494,1775662281318,-606.860603,0.0001421,2]
[420086495,1775662281328,-308.156759,0.0001421,2]
[420086496,1775662281338,-308.156759,0.0001421,2]
[420086497,1775662281349,-308.156759,0.0001421,2]
[420086498,1775662281359,-162.763813,0.0001421,2]
[420086499,1775662281369,-151.0,0.0001421,2]
[420086500,1775662281379,-168.042523,0.0001421,2]
[420086501,1775662281389,-308.156762,0.0001421,2]
[420086502,1775662281399,-162.763813,0.0001421,2]
[420086503,1775662281408,-163.620579,0.0001421,2]
[420086504,1775662281418,-168.042523,0.0001421,2]
[420086505,1775662281427,-162.763813,0.0001421,2]
[420086506,1775662281437,-151.0,0.0001421,2]
[420086507,1775662281446,-168.042523,0.0001421,2]
[420086508,1775662281457,-162.763822,0.0001421,2]
[420086509,1775662281466,-459.063677,0.0001421,2]
[420086510,1775662281476,-967.023782,0.0001421,2]
[420086511,1775662281486,-168.042515,0.0001421,2]
[420086512,1775662281496,-151.0,0.0001421,2]
[420086513,1775662281506,-459.063677,0.0001421,2]
[420086514,1775662281516,-967.023782,0.0001421,2]
[420086515,1775662281526,-151.0,0.0001421,2]
[420086516,1775662281536,-459.063677,0.0001421,2]
[420086517,1775662281546,-151.0,0.0001421,2]
[420086518,1775662281556,-151.0,0.0001421,2]
[420086519,1775662281565,-967.023782,0.0001421,2]
[420086520,1775662281575,-151.0,0.0001421,2]
[420086521,1775662281585,-459.063672,0.0001421,2]
[420086522,1775662281594,-151.0,0.0001421,2]
[420086523,1775662281603,-151.0,0.0001421,2]
[420086524,1775662281613,-967.023776,0.0001421,2]
[420086525,1775662281622,-196.810673,0.0001421,2]
[420086526,1775662281633,-151.0,0.0001421,2]
[420086527,1775662281642,-151.0,0.0001421,2]
[420086528,1775662281653,-151.0,0.0001421,2]
[420086529,1775662281663,-151.0,0.0001421,2]
[420086530,1775662281673,-151.0,0.0001421,2]
[420086531,1775662281685,-153.800621,0.0001421,2]
[420086532,1775662281695,-203.119625,0.0001421,2]
[420086533,1775662281705,-203.119625,0.0001421,2]
[420086534,1775662281715,-203.119625,0.0001421,2]
[420086535,1775662281725,-203.119623,0.0001421,2]
[420086536,1775662281735,-214.439315,0.0001421,2]
[420086537,1775662281745,-214.439315,0.0001421,2]
[420086538,1775662281754,-214.439315,0.0001421,2]
[420086539,1775662281764,-214.439313,0.0001421,2]
[420086540,1775662281774,-184.918203,0.0001421,2]
[420086541,1775662281785,-151.0,0.0001421,2]
[420086542,1775662281794,-184.918203,0.0001421,2]
[420086543,1775662281804,-631.145346,0.0001421,2]
[420086544,1775662281814,-184.918203,0.0001421,2]
[420086545,1775662281824,-151.0,0.0001421,2]
[420086546,1775662281835,-631.145346,0.0001421,2]
[420086547,1775662281845,-151.0,0.0001421,2]
[420086548,1775662281855,-184.918195,0.0001421,2]
[420086549,1775662281864,-980.419935,0.0001421,2]
[420086550,1775662281873,-631.145346,0.0001421,2]
[420086551,1775662281883,-980.419935,0.0001421,2]
[420086552,1775662281894,-693.945351,0.0001421,2]
[420086553,1775662281904,-631.145348,0.0001421,2]
[420086554,1775662281915,-980.419935,0.0001421,2]
[420086555,1775662281925,-693.945351,0.0001421,2]
[420086556,1775662281935,-980.419944,0.0001421,2]
[420086557,1775662281946,-1165.219709,0.0001421,2]
[420086558,1775662281956,-2027.179466,0.0001421,2]
[420086559,1775662281966,-693.945351,0.0001421,2]
[420086560,1775662281976,-1165.219709,0.0001421,2]
[420086561,1775662281987,-2027.179466,0.0001421,2]
[420086562,1775662281997,-693.945352,0.0001421,2]
[420086563,1775662282007,-1165.219709,0.0001421,2]
[420086564,1775662282017,-2027.179466,0.0001421,2]
[420086565,1775662282027,-2584.756907,0.0001421,2]
[420086566,1775662282037,-273.77125,0.0001421,2]
[420086567,1775662282047,-1165.219717,0.0001421,2]
[420086568,1775662282057,-2584.756907,0.0001421,2]
[420086569,1775662282066,-2027.179476,0.0001421,2]
[420086570,1775662282076,-2584.756907,0.0001421,2]
[420086571,1775662282086,-2584.756915,0.0001421,2]
[420086572,1775662282097,-1659.646483,0.0001421,2]
[420086573,1775662282108,-151.0,0.0001421,2]
[420086574,1775662282118,-783.271789,0.0001421,2]
[420086575,1775662282128,-1659.646483,0.0001421,2]
[420086576,1775662282138,-151.0,0.0001421,2]
[420086577,1775662282149,-783.271789,0.0001421,2]
[420086578,1775662282158,-151.0,0.0001421,2]
[420086579,1775662282168,-1659.646483,0.0001421,2]
[420086580,1775662282178,-378.257063,0.0001421,2]
[420086581,1775662282188,-151.0,0.0001421,2]
[420086582,1775662282197,-269.772423,0.0001421,2]
[420086583,1775662282207,-783.271789,0.0001421,2]
[420086584,1775662282217,-1659.646474,0.0001421,2]
[420086585,1775662282228,-378.257063,0.0001421,2]
[420086586,1775662282238,-783.271795,0.0001421,2]
[420086587,1775662282249,-378.257063,0.0001421,2]
[420086588,1775662282259,-808.317096,0.0001421,2]
[420086589,1775662282270,-378.25706,0.0001421,2]
[420086590,1775662282281,-808.317096,0.0001421,2]
[420086591,1775662282291,-208.982357,0.0001421,2]
[420086592,1775662282301,-208.982357,0.0001421,2]
[420086593,1775662282311,-808.317096,0.0001421,2]
[420086594,1775662282321,-208.982357,0.0001421,2]
[420086595,1775662282331,-808.317106,0.0001421,2]
[420086596,1775662282341,-208.982348,0.0001421,2]
[420086597,1775662282351,-1320.335912,0.0001421,2]
[420086598,1775662282360,-1320.335912,0.0001421,2]
[420086599,1775662282370,-1320.335912,0.0001421,2]
[420086600,1775662282380,-1320.335906,0.0001421,2]
[420086601,1775662282389,-151.0,0.0001421,2]
[420086602,1775662282399,-151.0,0.0001421,2]
[420086603,1775662282410,-570.868716,0.0001421,2]
[420086604,1775662282420,-570.868716,0.0001421,2]
[420086605,1775662282430,-570.868716,0.0001421,2]
[420086606,1775662282441,-570.868721,0.0001421,2]
[420086607,1775662282451,-427.4,0.00014224,2]
[420086608,1775662282460,-390.68773847,0.00014232,2]
[420086609,1775662282471,-166.66,0.00014247,2]
[420086610,1775662282481,-150.0,0.00014247,2]
[420086611,1775662282491,-150.0,0.00014247,2]
[420086612,1775662282501,-150.0,0.00014247,2]
[420086613,1775662282511,-150.0,0.00014247,2]
[420086614,1775662282521,-1000.0,0.00014247,2]
[420086615,1775662282532,-1000.0,0.00014247,2]
[420086616,1775662282541,-1000.0,0.00014247,2]
[420086617,1775662282551,-1000.0,0.00014247,2]
[420086618,1775662282560,-362.28838287,0.00014247,2]
[420086619,1775662282570,-1000.0,0.00014247,2]
[420086620,1775662282580,-1000.0,0.00014247,2]
[420086621,1775662282590,-501.12672973,0.00014247,2]
[420086622,1775662282600,-1000.0,0.00014247,2]
[420086623,1775662282609,-1000.0,0.00014247,2]
[420086624,1775662282618,-1000.0,0.00014247,2]
[420086625,1775662282629,-1082.33512146,0.00014247,2]
[420086626,1775662282639,-1000.0,0.00014247,2]
[420086627,1775662282649,-242.46089406,0.00014247,2]
[420086628,1775662282659,-1000.0,0.00014247,2]
[420086629,1775662282670,-1000.0,0.00014247,2]
[420086630,1775662282680,-1000.0,0.00014247,2]
[420086631,1775662282689,-1000.0,0.00014247,2]
[420086632,1775662282699,-1000.0,0.00014247,2]
[420086633,1775662282710,-1000.0,0.00014247,2]
[420086634,1775662282720,-230.66718579,0.00014247,2]
[420086635,1775662282731,-499.69188729,0.00014247,2]
[420086636,1775662282741,-244.99358581,0.00014247,2]
[420086637,1775662282752,-501.03865935,0.00014247,2]
[420086638,1775662282762,-503.55298516,0.00014247,2]
[420086639,1775662282773,-1003.11256555,0.00014247,2]
[420086640,1775662282782,-1000.0,0.00014247,2]
[420086641,1775662282793,-1000.0,0.00014247,2]
[420086642,1775662282803,-1000.0,0.00014247,2]
[420086643,1775662282812,-792.48284775,0.00014247,2]
[420086644,1775662282822,-1000.0,0.00014247,2]
[420086645,1775662282832,-1000.0,0.00014247,2]
[420086646,1775662282842,-1000.0,0.00014247,2]
[420086647,1775662282852,-1000.0,0.00014247,2]
[420086648,1775662282863,-786.02,0.00014247,2]
[420086649,1775662282872,-1724.7905372,0.00014292,2]
[420086650,1775662282882,-1852.42,0.00014327,2]
[420086651,1775662282893,-166.66,0.00014384,2]
[420086652,1775662282903,-670.01,0.00014384,2]
[420086653,1775662282912,-985.91,0.00014384,2]
[420086654,1775662282921,-200.0,0.00014384,2]
[420086655,1775662282931,-427.4,0.00014459,2]
[420086656,1775662282942,-160.0,0.0001452,2]
[420086657,1775662282953,-786.02,0.00014521,2]
[420086658,1775662282964,-1600.0,0.00014613,2]
[420086659,1775662282974,-5174.3716117,0.00014619,2]
[420086660,1775662282983,-578.20924308,0.00014646,2]
[420086661,1775662282993,-200.0,0.00014646,2]
[420086662,1775662283003,-500.0,0.00014646,2]
[420086663,1775662283012,-151.0,0.00014646,2]
[420086664,1775662283022,-623.58710448,0.00014646,2]
[420086665,1775662283031,-8260.13072239,0.00014646,2]
[420086666,1775662283040,-151.0,0.00014646,2]
[420086667,1775662283050,-1235.18214925,0.00014646,2]
[420086668,1775662283059,-158.44511549,0.00014646,2]
[420086669,1775662283068,-743.50770149,0.00014646,2]
[420086670,1775662283078,-181.08010149,0.00014646,2]
[420086671,1775662283088,-181.08010149,0.00014646,2]
[420086672,1775662283099,-160.62835242,0.00014646,2]
[420086673,1775662283109,-1500.0,0.00014646,2]
[420086674,1775662283119,-1500.0,0.00014646,2]
[420086675,1775662283128,-151.0,0.00014646,2]
[420086676,1775662283138,-1500.0,0.00014646,2]
[420086677,1775662283148,-1500.0,0.00014646,2]